bitfinex-derivatives/quotes_ETHF0:USTF0_20250125
["timestamp","ask_amount","ask_price","bid_price","bid_amount"]
[1737815098134,1.5207,3307.6,3307.5,0.48381]
[1737815101742,1.5207,3307.6,3307.3,3.7]
[1737815101939,1.5207,3307.6,3307.3,3.2078]
[1737815102333,0.48382,3307.4,3307.3,3.2078]
[1737815103344,0.48382,3307.5,3307.3,3.69164]
[1737815104342,0.48382,3307.5,3307.3,3.2078]
[1737815105442,1.5207,3307.6,3307.4,1.09783018]
[1737815105643,1.5207,3307.6,3307.4,1.58165018]
[1737815105839,2.0045,3307.6,3307.5,0.4993]
[1737815106036,0.486,3307.6,3307.5,0.98311]
[1737815106245,3.21233556,3307.8,3307.7,0.48378]
[1737815106444,3.21233556,3307.8,3307.7,41.28378]
[1737815107948,0.00453556,3307.8,3307.7,41.28378]
[1737815109651,0.00453556,3307.8,3307.7,43.60167904]
[1737815110345,0.00453556,3307.8,3307.7,46.80947904]
[1737815111550,0.00453556,3307.8,3307.7,47.05165423]
[1737815112853,3.2078,3308.4,3308.3,0.48369]
[1737815113045,3.2078,3308.4,3308.3,2.80158904]
[1737815113937,3.2078,3308.4,3308.0,2.3224346]
[1737815114142,3.2078,3308.4,3308.3,0.48369]
[1737815114441,3.69149,3308.4,3308.1,0.48372]
[1737815114637,3.2078,3308.4,3308.0,0.00453556]
[1737815114848,3.69148,3308.4,3308.1,0.48371]
[1737815115050,0.9846,3308.5,3308.3,0.48368]
[1737815115245,0.9846,3308.5,3308.4,0.48368]
[1737815116251,0.4745,3308.5,3308.4,0.48368]
[1737815119854,0.00298905,3308.7,3308.6,0.48365]
[1737815120946,0.52868905,3308.7,3308.6,0.48365]
[1737815124752,0.48366,3308.6,3308.3,0.48369]
[1737815124957,0.48366,3308.5,3308.4,0.48367]
[1737815125863,0.48366,3308.5,3308.3,0.48368]
[1737815126155,0.48366,3308.5,3308.0,2.3224346]
[1737815126358,0.52868905,3308.7,3308.0,2.3224346]
[1737815126656,0.52868905,3308.7,3308.3,2.31789904]
[1737815126657,1.01232905,3308.7,3308.3,2.31789904]
[1737815126848,0.52868905,3308.7,3308.5,0.48365]
[1737815127053,0.52868905,3308.7,3308.6,0.48365]
[1737815127251,0.52868905,3308.7,3308.4,0.4796]
[1737815127451,0.52868905,3308.7,3308.5,0.48365]
[1737815127452,1.01232905,3308.7,3308.5,0.48365]
[1737815128350,0.52868905,3308.7,3308.5,0.48365]
[1737815128550,0.48365,3308.6,3308.5,0.48365]
[1737815128951,0.48365,3308.6,3308.4,0.48367]
[1737815130158,0.48365,3308.6,3308.5,0.48366]
[1737815130864,1.01232905,3308.7,3308.5,0.48366]
[1737815131758,1.01232905,3308.7,3308.6,0.48365]
[1737815135457,0.52868905,3308.7,3308.1,41.89705287]
[1737815135766,0.48371,3308.3,3308.2,0.48371]
[1737815136856,0.48371,3308.2,3308.1,40.8]
[1737815137064,0.48372,3308.1,3308.0,0.00453556]
[1737815137458,0.48372,3308.1,3308.0,0.48827556]
[1737815137859,5.19252,3308.2,3308.1,0.48372]
[1737815138755,4.7088,3308.2,3308.1,1.58077287]
[1737815139564,4.7088,3308.2,3308.0,0.00453556]
[1737815139863,0.48372,3308.1,3308.0,0.48826556]
[1737815140163,0.48372,3308.1,3308.0,0.00453556]
[1737815140368,6.28957287,3308.2,3308.1,0.48372]
[1737815140670,6.28957287,3308.2,3308.0,0.48826556]
[1737815140671,0.48372,3308.1,3308.0,0.48826556]
[1737815141059,0.48372,3308.1,3308.0,0.00453556]
[1737815141960,4.7088,3308.2,3308.1,0.48372]
[1737815142172,4.7088,3308.2,3308.1,1.58077287]
[1737815142370,4.7088,3308.2,3308.1,2.05877287]
[1737815142868,5.19251,3308.2,3308.1,2.05877287]
[1737815143070,5.19251,3308.2,3308.1,0.96172]
[1737815144360,5.19251,3308.2,3308.1,0.48372]
[1737815144565,5.19251,3308.2,3308.0,0.48826556]
[1737815144566,0.48372,3308.1,3308.0,0.48826556]
[1737815150876,0.48372,3308.1,3308.0,0.00453556]
[1737815151575,0.48372,3308.1,3308.0,0.48827556]
[1737815155569,0.48372,3308.1,3308.0,0.00453556]
[1737815155776,4.37406599,3308.1,3308.0,0.00453556]
[1737815156079,9.37406599,3308.1,3308.0,0.00453556]
[1737815157579,4.37406599,3308.1,3308.0,0.00453556]
[1737815163385,7.58186599,3308.1,3308.0,0.00453556]
[1737815176584,12.09814599,3308.1,3307.1,0.48387]
[1737815176780,0.48384,3307.3,3307.2,0.5091]
[1737815177682,3.2078,3307.4,3307.2,0.5091]
[1737815177890,3.69164,3307.4,3307.3,0.48384]
[1737815178489,3.69164,3307.4,3307.3,0.97584]
[1737815180795,3.2078,3307.4,3307.3,0.97584]
[1737815181487,0.4838,3307.6,3307.3,41.292]
[1737815181792,0.4838,3307.6,3307.5,0.48381]
[1737815183197,0.48378,3307.8,3307.7,0.48377]
[1737815183395,0.48379,3307.7,3307.6,0.48379]
[1737815185193,0.48378,3307.8,3307.7,0.48377]
[1737815186496,0.48379,3307.7,3307.6,0.48379]
[1737815186998,0.4838,3307.6,3307.5,0.4838]
[1737815187293,0.48381,3307.5,3307.4,0.48382]
[1737815192198,0.96111,3307.5,3307.4,0.48382]
[1737815192601,0.4773,3307.5,3307.4,0.48382]
[1737815193099,0.98168,3307.8,3307.7,0.48378]
[1737815193295,0.4979,3307.8,3307.7,0.48378]
[1737815196007,3.2078,3307.9,3307.8,0.48377]
[1737815199704,4.78922369,3307.9,3307.8,0.48377]
[1737815199904,4.30547369,3307.9,3307.8,0.48377]
[1737815200908,1.09767369,3307.9,3307.8,0.48377]
[1737815204313,5.12237369,3308.1,3307.7,0.5068]
[1737815204511,2.12537369,3308.1,3308.0,0.48374]
[1737815205513,2.60909369,3308.1,3308.0,0.48374]
[1737815205912,2.12537369,3308.1,3307.7,0.5068]
[1737815206111,0.48379,3307.7,3307.6,0.48378]
[1737815206416,0.48383,3307.4,3307.3,0.48383]
[1737815206713,4.30547369,3307.4,3307.1,0.4947]
[1737815206914,1.09767369,3307.2,3307.1,0.48386]
[1737815207109,1.58152369,3307.2,3307.1,0.48386]
[1737815207512,1.09767369,3307.2,3306.7,0.4947]
[1737815207812,1.58155369,3307.0,3306.9,0.48842556]
[1737815208117,1.09767369,3307.0,3306.9,0.48842556]
[1737815209817,1.44618,3307.1,3307.0,0.48388]
[1737815211620,0.48388,3307.0,3306.9,0.48842556]
[1737815211924,1.44618,3307.1,3307.0,0.48388]
[1737815212420,3.92633589,3307.0,3306.9,0.00453556]
[1737815212612,4.41021589,3307.0,3306.9,0.00453556]
[1737815216420,4.41021589,3307.0,3306.9,0.48843556]
[1737815218519,4.41021589,3307.0,3306.9,0.00453556]
[1737815222322,4.41021589,3307.0,3306.9,0.48843556]
[1737815222722,4.41021589,3307.0,3306.9,0.00453556]
[1737815223020,1.44618,3307.1,3307.0,0.48388]
[1737815223628,1.44618,3307.1,3307.0,41.28388]
[1737815224033,1.44618,3307.1,3307.0,40.8]
[1737815224330,0.48388,3307.0,3306.9,0.48842556]
[1737815224629,0.48388,3307.0,3306.9,0.00453556]
[1737815225225,4.46181289,3307.0,3306.9,0.00453556]
[1737815226529,6.78191403,3307.0,3306.9,0.00453556]
[1737815226738,6.29803403,3307.0,3306.0,3.2078]
[1737815227035,6.29803403,3307.0,3306.3,0.48399]
[1737815227036,0.48399,3306.4,3306.3,0.48399]
[1737815229339,1.5232,3306.5,3306.0,3.95887151]
[1737815229533,2.00716,3306.5,3306.4,0.48397]
[1737815230032,3.2078,3306.6,3306.5,0.48396]
[1737815230232,3.69174,3306.6,3306.5,0.48396]
[1737815230535,0.48394,3306.6,3306.5,0.48396]
[1737815231131,0.00453556,3306.7,3306.2,0.5179]
[1737815231333,0.48401,3306.2,3306.1,0.48401]
[1737815231529,0.48399,3306.3,3306.2,0.48399]
[1737815232329,0.4781,3306.4,3306.0,44.51343556]
[1737815232536,0.48401,3306.2,3306.1,0.48401]
[1737815232836,0.4781,3306.4,3306.0,44.51343556]
[1737815233036,0.48401,3306.1,3306.0,44.99745556]
[1737815233531,0.48401,3306.1,3306.0,41.30563556]
[1737815233732,0.48401,3306.1,3306.0,40.80453556]
[1737815233931,0.98491,3306.1,3306.0,40.80453556]
[1737815234233,0.98491,3306.1,3306.0,0.00453556]
[1737815234527,4.90046441,3306.1,3306.0,0.00453556]
[1737815236040,4.90046441,3306.1,3306.0,0.48856556]
[1737815239738,4.41645441,3306.1,3306.0,0.48856556]
[1737815240136,3.91555441,3306.1,3306.0,0.48856556]
[1737815244744,4.46308976,3306.2,3306.1,0.48401]
[1737815245337,0.48401,3306.2,3306.1,0.48401]
[1737815247445,4.32591856,3306.2,3306.1,0.48401]
[1737815248048,3.84190856,3306.2,3306.1,0.48401]
[1737815248437,2.997,3306.3,3306.0,0.00453556]
[1737815248637,2.997,3306.3,3306.2,0.484]
[1737815248848,1.8991,3306.4,3306.3,0.48399]
[1737815250344,5.91475952,3306.4,3306.3,0.48399]
[1737815251639,6.39872952,3306.4,3306.3,0.48399]
[1737815257450,9.60652952,3306.4,3306.3,0.48399]
[1737815258355,6.39872952,3306.4,3306.3,0.48399]
[1737815258545,9.60652952,3306.4,3306.3,0.48399]
[1737815259554,9.12255952,3306.4,3306.3,0.48399]
[1737815259750,10.70528492,3306.4,3306.3,0.48399]
[1737815260051,10.22131492,3306.4,3306.3,0.48399]
[1737815260251,9.74031492,3306.4,3306.3,0.48399]
[1737815260455,8.64155952,3306.4,3306.3,0.48399]
[1737815261449,8.64155952,3306.4,3306.3,0.98109]
[1737815263255,3.2078,3306.4,3306.3,0.98109]
[1737815263854,0.00453556,3306.7,3306.3,0.98109]
[1737815264054,0.00453556,3306.7,3306.6,0.48394]
[1737815269360,0.00453556,3306.7,3306.3,0.4971]
[1737815269561,4.01460497,3306.7,3306.3,0.4971]
[1737815269761,1.47095,3306.6,3306.5,0.48395]
[1737815269963,1.95415,3306.6,3306.5,0.48395]
[1737815271762,1.4702,3306.6,3306.5,0.48395]
[1737815272661,0.4908,3306.6,3306.5,0.48395]
[1737815273263,0.00453556,3306.7,3306.3,2.81780491]
[1737815273459,0.00453556,3306.7,3306.6,0.48394]
[1737815273962,0.00453556,3306.7,3306.6,41.28394]
[1737815275862,0.00453556,3306.7,3306.6,0.48394]
[1737815285757,0.99833556,3306.7,3306.6,0.48394]
[1737815285960,1.49373556,3306.7,3306.6,0.48394]
[1737815286866,1.49373556,3306.7,3306.2,1.6991]
[1737815286867,0.48396,3306.5,3306.4,0.48396]
[1737815288169,0.48398,3306.4,3306.3,0.48398]
[1737815288364,5.49082674,3306.7,3306.2,0.4891]
[1737815288680,0.5241,3306.3,3306.2,0.9731]
[1737815289863,0.48394,3306.6,3306.3,0.48399]
[1737815290065,0.48394,3306.6,3306.2,0.965]
[1737815290066,1.00804,3306.6,3306.5,0.48396]
[1737815290567,0.48398,3306.4,3306.2,0.965]
[1737815290776,0.48398,3306.4,3306.3,0.48398]
[1737815291570,3.2078,3306.5,3306.0,3.21233556]
[1737815291772,0.48402,3306.1,3306.0,3.69635556]
[1737815292072,0.48402,3306.1,3306.0,3.21233556]
[1737815292268,4.4724767,3306.1,3306.0,3.21233556]
[1737815293864,4.4724767,3306.1,3306.0,0.00453556]
[1737815294466,3.9884567,3306.1,3306.0,0.00453556]
[1737815294670,0.939,3306.4,3306.0,0.00453556]
[1737815294671,1.42298,3306.4,3306.3,0.48399]
[1737815294875,0.48399,3306.3,3306.2,0.48399]
[1737815296669,0.48398,3306.4,3306.0,0.00453556]
[1737815296880,1.4556,3306.2,3306.0,0.00453556]
[1737815297269,1.4556,3306.2,3306.1,0.48402]
[1737815297469,0.4786,3306.2,3306.1,0.99782]
[1737815297663,3.7269,3306.5,3306.4,0.48397]
[1737815298377,3.2078,3306.5,3306.4,0.48397]
[1737815300673,0.00453556,3306.7,3306.6,0.48394]
[1737815302078,0.48846556,3306.7,3306.6,0.48394]
[1737815302677,0.00453556,3306.7,3306.6,0.48394]
[1737815303580,0.48846556,3306.7,3306.6,0.48394]
[1737815305678,0.00453556,3306.7,3306.6,0.48394]
[1737815307077,0.48846556,3306.7,3306.6,0.48394]
[1737815307877,0.00453556,3306.7,3306.6,0.48394]
[1737815308077,0.48846556,3306.7,3306.6,0.48394]
[1737815308885,0.00453556,3306.7,3306.6,0.48394]
[1737815311782,0.00453556,3306.7,3306.6,1.58228833]
[1737815313090,0.00453556,3306.7,3306.6,0.48394]
[1737815318484,0.00453556,3306.7,3306.6,1.46134]
[1737815322783,0.48846556,3306.7,3306.6,1.46134]
[1737815323687,0.00453556,3306.7,3306.6,1.46134]
[1737815324188,1.10288389,3306.7,3306.1,0.4936]
[1737815324484,0.48401,3306.2,3306.1,0.48401]
[1737815324993,1.51391,3306.2,3306.1,0.48401]
[1737815325191,2.02751,3306.2,3306.1,0.48401]
[1737815326984,5.23531,3306.2,3306.1,0.48401]
[1737815327189,5.23531,3306.2,3306.0,0.00453556]
[1737815327190,4.7513,3306.2,3306.0,0.00453556]
[1737815327382,0.48401,3306.1,3306.0,0.00453556]
[1737815327694,0.48401,3306.1,3306.0,0.48856556]
[1737815330894,0.48401,3306.1,3306.0,0.00453556]
[1737815334298,0.48401,3306.1,3306.0,0.48856556]
[1737815335094,0.48401,3306.1,3306.0,0.00453556]
[1737815335597,0.48401,3306.1,3306.0,0.48856556]
[1737815336399,1.5435,3306.2,3306.0,0.00453556]
[1737815336602,3.2078,3306.3,3306.0,0.00453556]
[1737815336898,6.2048,3306.4,3306.3,0.48399]
[1737815337692,6.68877,3306.4,3306.3,0.48399]
[1737815337893,3.69177,3306.4,3306.3,0.48399]
[1737815338098,0.48397,3306.4,3306.3,0.48399]
[1737815338294,1.5277,3306.6,3306.1,0.4923]
[1737815338497,0.48397,3306.5,3306.4,0.48397]
[1737815339001,4.42706722,3306.5,3306.4,0.48397]
[1737815341698,3.94309722,3306.5,3306.4,0.48397]
[1737815342007,0.5198,3306.6,3306.5,0.48396]
[1737815344099,1.00374,3306.6,3306.5,0.48396]
[1737815344507,0.5198,3306.6,3306.5,0.48396]
[1737815346404,1.00374,3306.6,3306.5,0.48396]
[1737815346910,0.5198,3306.6,3306.5,0.48396]
[1737815347602,1.00374,3306.6,3306.5,0.48396]
[1737815348611,0.5198,3306.6,3306.5,0.48396]
[1737815349504,3.7276,3306.6,3306.5,0.48396]
[1737815349810,4.21154,3306.6,3306.5,0.48396]
[1737815350198,3.7276,3306.6,3306.5,0.48396]
[1737815351608,1.00374,3306.6,3306.5,0.48396]
[1737815352203,1.00374,3306.6,3306.5,0.97766]
[1737815353012,0.48847556,3306.7,3306.6,0.48394]
[1737815353616,0.00453556,3306.7,3306.6,1.58232543]
[1737815354009,0.00453556,3306.7,3306.6,2.06792543]
[1737815355819,0.00453556,3306.7,3306.6,0.96954]
[1737815357215,0.00453556,3306.7,3306.2,3.2078]
[1737815357413,3.2078,3306.6,3306.1,0.487]
[1737815357609,0.5155,3306.5,3306.1,0.487]
[1737815357810,1.0028,3306.5,3306.1,0.971]
[1737815358018,0.484,3306.2,3306.1,0.484]
[1737815358410,0.484,3306.3,3306.1,0.48401]
[1737815358915,0.484,3306.3,3306.0,0.50473556]
[1737815359120,0.484,3306.3,3306.2,0.484]
[1737815360320,0.48401,3306.1,3306.0,0.50473556]
[1737815361512,0.48401,3306.1,3306.0,0.98876556]
[1737815367218,0.48401,3306.2,3306.1,0.484]
[1737815367421,7.11030519,3306.3,3306.0,0.50473556]
[1737815367622,7.59430519,3306.3,3306.2,0.484]
[1737815368923,4.38650519,3306.3,3306.2,0.484]
[1737815369119,3.9998,3306.5,3306.0,0.50473556]
[1737815369323,3.9998,3306.5,3306.4,0.48397]
[1737815370620,1.0028,3306.5,3306.4,0.48397]
[1737815376930,3.2078,3307.1,3306.4,1.20993]
[1737815377124,3.2078,3307.1,3307.0,0.48388]
[1737815377629,0.48389,3307.0,3306.9,0.48389]
[1737815379831,3.69168,3307.1,3307.0,0.48388]
[1737815380027,3.2078,3307.1,3307.0,0.48388]
[1737815380333,3.69167,3307.1,3307.0,0.48388]
[1737815381828,3.2078,3307.1,3307.0,0.48388]
[1737815385525,3.69167,3307.1,3307.0,0.48388]
[1737815386027,3.2078,3307.1,3307.0,0.48388]
[1737815386734,0.48838556,3307.3,3307.2,0.48385]
[1737815387430,4.48777299,3307.3,3307.2,0.48385]
[1737815388434,4.00392299,3307.3,3306.7,0.75489651]
[1737815388741,0.48387,3307.2,3307.1,0.48386]
[1737815389334,4.00392299,3307.3,3307.2,0.48385]
[1737815389523,0.00453556,3307.3,3307.2,0.48385]
[1737815389725,0.48837556,3307.3,3307.2,0.48385]
[1737815390533,0.00453556,3307.3,3306.9,0.5205]
[1737815390728,0.48387,3307.2,3307.1,0.48386]
[1737815391932,4.01276671,3307.2,3307.0,0.48388]
[1737815392130,0.48388,3307.1,3307.0,0.48388]
[1737815392428,7.22056671,3307.2,3307.1,0.48387]
[1737815393033,4.01276671,3307.2,3307.1,0.48387]
[1737815393530,0.48837556,3307.3,3307.2,0.48385]
[1737815396031,0.00453556,3307.3,3307.2,0.48385]
[1737815402755,0.48837556,3307.3,3307.2,0.48385]
[1737815402951,0.00453556,3307.3,3307.2,0.48385]
[1737815403255,0.00453556,3307.3,3307.2,6.01138649]
[1737815414175,1.0369,3307.7,3307.2,5.52753649]
[1737815414366,1.0369,3307.7,3307.6,0.4838]
[1737815418670,0.5026,3307.9,3307.5,2.31973649]
[1737815418872,1.0276,3307.9,3307.8,0.48377]
[1737815420174,1.5162,3307.9,3307.8,0.48377]
[1737815421882,1.5162,3307.9,3307.8,3.69157]
[1737815422380,1.5162,3307.9,3307.8,0.48377]
[1737815423779,1.5162,3307.9,3307.8,0.99827]
[1737815427471,1.5162,3307.9,3307.6,3.2078]
[1737815427680,0.48378,3307.8,3307.7,0.48377]
[1737815428580,0.48378,3307.7,3307.6,3.69159]
[1737815428782,4.30552795,3307.7,3307.2,3.2078]
[1737815428977,0.48382,3307.5,3307.4,0.48382]
[1737815429681,7.14594157,3307.7,3307.4,0.48382]
[1737815429986,7.14594157,3307.7,3307.2,3.2078]
[1737815429987,0.48381,3307.6,3307.2,3.2078]
[1737815430187,0.48381,3307.6,3307.5,0.48381]
[1737815430884,1.51136,3307.9,3307.2,4.41741]
[1737815431091,0.48377,3307.8,3307.7,0.48378]
[1737815431384,3.2078,3307.8,3307.7,0.48377]
[1737815431773,0.48377,3307.8,3307.7,0.48377]
[1737815432477,4.2354,3307.9,3307.3,0.5017]
[1737815432678,1.51136,3307.9,3307.8,0.48377]
[1737815432878,1.0276,3307.9,3307.8,0.48377]
[1737815436290,1.51135,3307.9,3307.8,0.48377]
[1737815436489,0.48377,3307.8,3307.7,0.48377]
[1737815437099,1.0276,3307.9,3307.4,0.4976]
[1737815437285,1.0276,3307.9,3307.8,0.48377]
[1737815437587,1.51135,3307.9,3307.8,0.48377]
[1737815437993,1.0276,3307.9,3307.8,0.48377]
[1737815441193,0.5026,3307.9,3307.8,0.48377]
[1737815441491,0.5026,3307.9,3307.8,1.00447]
[1737815446688,0.5026,3307.9,3307.8,1.25152326]
[1737815448891,0.00298905,3308.0,3307.8,0.76775326]
[1737815449196,0.00298905,3308.0,3307.9,0.48375]
[1737815458997,0.48672905,3308.0,3307.9,0.48375]
[1737815459996,0.00298905,3308.0,3307.9,0.48375]
[1737815460198,0.96262905,3308.0,3307.9,0.48375]
[1737815460394,1.00138905,3308.0,3307.9,0.48375]
[1737815460603,0.00298905,3308.0,3307.9,0.48375]
[1737815461394,0.48672905,3308.0,3307.9,0.48375]
[1737815461906,0.00298905,3308.0,3307.9,0.48375]
[1737815462402,0.48672905,3308.0,3307.9,0.48375]
[1737815465703,0.00298905,3308.0,3307.9,0.48375]
[1737815466709,0.00298905,3308.0,3307.8,0.5207]
[1737815467009,0.48378,3307.8,3307.7,0.48377]
[1737815470305,0.48376,3307.9,3307.8,0.48376]
[1737815471714,0.48376,3307.9,3307.6,3.2078]
[1737815471715,0.48378,3307.8,3307.6,3.2078]
[1737815471916,0.9744,3307.7,3307.6,3.6916]
[1737815472124,1.4512,3307.7,3307.6,3.6916]
[1737815474421,1.4512,3307.7,3307.2,3.2078]
[1737815474625,0.48384,3307.4,3307.3,0.48383]
[1737815475928,0.48384,3307.3,3307.2,3.69165]
[1737815476122,0.48384,3307.3,3307.2,3.2078]
[1737815476123,0.97954,3307.3,3307.2,3.2078]
[1737815476324,0.97954,3307.3,3306.6,1.0328]
[1737815476325,1.59371629,3307.3,3306.7,3.2078]
[1737815476634,0.48391,3306.9,3306.7,3.69172]
[1737815476824,0.97961,3306.8,3306.7,3.2078]
[1737815477025,0.4957,3306.8,3306.7,3.69173]
[1737815478321,0.97961,3306.8,3306.7,3.69173]
[1737815478730,0.4957,3306.8,3306.7,3.69173]
[1737815479726,0.4957,3306.8,3306.7,3.2078]
[1737815479932,0.97961,3306.8,3306.7,3.2078]
[1737815480128,4.41184806,3306.8,3306.4,1.00446]
[1737815480324,1.0167,3306.7,3306.3,3.2078]
[1737815480630,0.48397,3306.4,3306.3,3.2078]
[1737815480819,1.0167,3306.7,3306.0,0.48856556]
[1737815480820,0.48401,3306.1,3306.0,0.48856556]
[1737815481630,0.48401,3306.2,3306.0,0.48856556]
[1737815481834,0.4751,3306.1,3306.0,0.48856556]
[1737815482133,0.968,3306.1,3306.0,0.48856556]
[1737815485133,0.968,3306.1,3306.0,41.28856556]
[1737815487732,0.968,3306.1,3306.0,40.80453556]
[1737815487933,1.45201,3306.1,3306.0,0.00453556]
[1737815488137,1.45201,3306.1,3306.0,0.48856556]
[1737815488433,1.45201,3306.1,3306.0,41.28856556]
[1737815488632,0.968,3306.1,3306.0,41.28856556]
[1737815489534,1.45201,3306.1,3306.0,0.48856556]
[1737815489729,0.968,3306.1,3306.0,0.48856556]
[1737815492138,0.99689,3306.3,3306.2,0.484]
[1737815492732,0.5129,3306.3,3306.2,0.484]
[1737815495843,0.505,3306.5,3306.4,0.48397]
[1737815496039,3.2078,3306.6,3306.5,0.48396]
[1737815496436,1.0354,3307.3,3306.3,5.52789929]
[1737815496740,1.0354,3307.3,3306.2,0.24583295]
[1737815496741,1.0354,3307.3,3307.2,0.48385]
[1737815497043,2.997,3307.5,3307.4,0.48382]
[1737815497744,3.2078,3307.6,3307.5,0.48381]
[1737815498134,3.2078,3307.6,3307.0,0.5129]
[1737815498339,3.6916,3307.6,3307.0,0.5129]
[1737815498534,3.6916,3307.6,3307.5,0.48381]
[1737815498739,3.2078,3307.6,3307.0,0.5129]
[1737815498939,0.48382,3307.5,3307.3,0.48383]
[1737815499148,0.48383,3307.4,3307.3,0.48383]
[1737815499339,0.5028,3307.4,3307.3,0.48383]
[1737815499842,0.48387,3307.1,3307.0,0.5129]
[1737815500038,0.48386,3307.2,3307.1,0.48386]
[1737815500433,0.48386,3307.2,3307.1,0.48387]
[1737815500639,0.48387,3307.1,3307.0,0.99678]
[1737815502346,0.5221,3307.3,3306.6,3.2078]
[1737815502543,0.5058,3307.0,3306.6,3.7261]
[1737815502744,3.7136,3307.0,3306.5,0.48395]
[1737815502946,0.48395,3306.6,3306.4,0.48396]
[1737815503251,0.48395,3306.6,3306.3,0.5183]
[1737815503452,0.4819,3306.9,3306.3,0.5183]
[1737815503756,0.48397,3306.4,3306.3,0.5183]
[1737815504150,0.96587,3306.4,3306.3,0.5183]
[1737815504343,1.45207,3306.4,3306.3,0.5183]
[1737815504652,1.45207,3306.4,3306.3,1.00229]
[1737815506051,0.484,3306.2,3306.1,0.484]
[1737815506655,0.48401,3306.1,3306.0,0.48856556]
[1737815507049,0.9681,3306.4,3306.0,0.48856556]
[1737815507356,0.48401,3306.2,3306.0,0.48856556]
[1737815507549,0.48401,3306.1,3306.0,0.48856556]
[1737815508057,0.48401,3306.1,3306.0,0.00453556]
[1737815508956,0.48401,3306.1,3306.0,0.48856556]
[1737815509957,0.48401,3306.2,3306.0,0.00453556]
[1737815510152,0.48401,3306.2,3306.1,0.48401]
[1737815510553,0.48399,3306.3,3306.2,0.48399]
[1737815511057,0.9681,3306.4,3306.1,0.48401]
[1737815511359,0.48399,3306.3,3306.1,0.48401]
[1737815511755,0.48399,3306.3,3306.2,0.484]
[1737815511951,0.48399,3306.3,3306.1,0.484]
[1737815512357,0.9681,3306.4,3306.0,0.00453556]
[1737815512561,3.48093,3306.7,3306.6,0.48394]
[1737815512861,2.997,3306.7,3306.6,0.48394]
[1737815513253,0.48393,3306.7,3306.6,0.48394]
[1737815513961,0.48391,3306.9,3306.7,0.48391]
[1737815514457,0.48391,3306.8,3306.7,0.48391]
[1737815515057,4.7519,3307.0,3306.4,0.4812]
[1737815515363,0.48391,3306.9,3306.8,0.4839]
[1737815515960,0.48392,3306.8,3306.7,0.48392]
[1737815517560,4.2379,3307.0,3306.4,0.4812]
[1737815517762,0.4839,3306.9,3306.8,0.48391]
[1737815518062,4.72179,3307.0,3306.9,0.4839]
[1737815518363,3.2078,3307.0,3306.9,0.4839]
[1737815519262,3.69168,3307.0,3306.9,0.4839]
[1737815521968,0.4839,3306.9,3306.8,0.4839]
[1737815523776,3.2078,3307.0,3306.9,0.4839]
[1737815526766,0.48387,3307.1,3306.7,0.4795]
[1737815526972,3.2078,3307.6,3306.9,2.32009929]
[1737815527173,0.48381,3307.5,3307.1,0.48387]
[1737815527372,0.48381,3307.5,3307.4,0.48381]
[1737815527774,3.2078,3307.6,3307.0,1.72531]
[1737815527973,3.2078,3307.6,3307.0,0.5156]
[1737815528178,0.48382,3307.5,3307.4,0.48382]
[1737815530369,0.48381,3307.5,3307.0,0.5156]
[1737815530575,0.48381,3307.5,3307.4,0.48382]
[1737815532174,1.5438,3307.8,3307.2,2.32009929]
[1737815532474,2.02757,3307.8,3307.7,0.48378]
[1737815533073,0.48379,3307.7,3307.4,0.48382]
[1737815533378,0.48381,3307.6,3307.5,0.4838]
[1737815535573,0.48381,3307.5,3307.4,0.48382]
[1737815537883,1.5438,3307.8,3307.2,2.32009929]
[1737815538280,0.48379,3307.7,3307.6,0.48379]
[1737815539686,0.48379,3307.7,3307.6,40.8]
[1737815540485,0.48379,3307.7,3307.6,41.2838]
[1737815540784,1.5438,3307.8,3307.6,40.8]
[1737815540985,2.02757,3307.8,3307.7,0.48378]
[1737815545787,3.21078905,3308.0,3307.6,40.8]
[1737815545986,3.21078905,3308.0,3307.9,0.48375]
[1737815549489,0.00298905,3308.0,3307.9,0.48375]
[1737815558206,2.997,3309.3,3307.8,2.80689929]
[1737815558506,0.493,3309.2,3309.1,0.48358]
[1737815558707,3.2078,3309.4,3309.3,0.48355]
[1737815559410,3.69133,3309.4,3309.3,0.48355]
[1737815559802,3.69133,3309.4,3309.2,0.98095]
[1737815560010,3.2078,3309.4,3309.2,0.4974]
[1737815560205,3.69134,3309.4,3309.3,40.8]
[1737815565513,3.69134,3309.4,3309.3,41.28355]
[1737815565708,3.69134,3309.4,3309.0,0.00453556]
[1737815565709,7.59605198,3309.4,3309.0,0.00453556]
[1737815566010,0.48358,3309.1,3309.0,0.00453556]
[1737815572413,3.2078,3309.4,3309.0,0.00453556]
[1737815572606,3.69135,3309.4,3309.0,0.00453556]
[1737815572910,3.69135,3309.4,3309.2,0.48355]
[1737815573513,3.2078,3309.4,3309.2,0.48355]
[1737815573713,3.69135,3309.4,3309.1,0.5127]
[1737815574114,3.69135,3309.4,3309.3,0.48355]
[1737815575313,0.5186,3309.6,3309.1,6.04059929]
[1737815575615,0.5186,3309.6,3309.5,0.48204988]
[1737815575815,1.00211,3309.6,3309.5,0.48204988]
[1737815576219,1.00211,3309.6,3309.2,0.5102]
[1737815576220,0.5186,3309.6,3309.2,0.5102]
[1737815576614,0.5186,3309.6,3309.4,0.48354]
[1737815576615,0.48353,3309.5,3309.4,0.48354]
[1737815576912,1.00063,3309.5,3309.4,0.48354]
[1737815577914,0.5171,3309.5,3309.4,0.48354]
[1737815578118,1.00062,3309.5,3309.4,0.48354]
[1737815578614,0.5171,3309.5,3309.4,0.48354]
[1737815580122,1.00062,3309.5,3309.4,0.48354]
[1737815580714,0.5171,3309.5,3309.2,0.5102]
[1737815580919,1.00063,3309.5,3309.4,0.48354]
[1737815581917,0.5171,3309.5,3309.4,0.48354]
[1737815584221,1.00212,3309.6,3309.5,0.48352]